bitfinex/quotes_SOLUSD_20230120
["timestamp","ask_amount","ask_price","bid_price","bid_amount"]
[1674175618223,10.0,21.154,21.14,0.96]
[1674175618441,35.46,21.153,21.141,0.96]
[1674175618624,35.46,21.153,21.142,0.96]
[1674175618833,108.1395,21.157,21.142,0.96]
[1674175618834,35.46,21.155,21.142,0.96]
[1674175619047,35.45,21.156,21.143,0.96]
[1674175619268,35.45,21.156,21.144,0.96]
[1674175619481,35.45,21.156,21.145,0.96]
[1674175620947,10.0,21.155,21.141,9.08902424]
[1674175621360,35.46,21.154,21.141,9.08902424]
[1674175621573,10.0,21.153,21.141,9.08902424]
[1674175621789,119.0215,21.153,21.134,6.67589433]
[1674175622022,35.46,21.152,21.134,6.67589433]
[1674175622221,10.0,21.151,21.134,6.67589433]
[1674175622737,10.0,21.149,21.134,6.67589433]
[1674175622935,10.0,21.149,21.134,15.76491857]
[1674175623146,35.47,21.148,21.134,15.76491857]
[1674175623582,35.47,21.148,21.135,17.96]
[1674175624426,35.47,21.148,21.135,36.13804848]
[1674175624636,10.0,21.149,21.135,27.04902424]
[1674175624849,10.0,21.149,21.136,0.96]
[1674175625040,10.0,21.149,21.137,0.96]
[1674175625247,35.46,21.15,21.138,0.96]
[1674175625481,119.0215,21.153,21.139,0.96]
[1674175625482,35.46,21.152,21.139,0.96]
[1674175625683,45.46,21.152,21.136,9.08902424]
[1674175626642,45.46,21.152,21.137,17.96]
[1674175626975,45.46,21.152,21.138,0.96]
[1674175627297,45.46,21.152,21.139,0.96]
[1674175627482,10.0,21.151,21.139,0.96]
[1674175628240,10.0,21.151,21.14,0.96]
[1674175628448,35.46,21.15,21.141,0.96]
[1674175628656,35.46,21.15,21.14,0.96]
[1674175628966,35.46,21.15,21.128,4.50893276]
[1674175629185,10.0,21.149,21.128,4.50893276]
[1674175629378,10.0,21.149,21.13,9.08902424]
[1674175629592,35.47,21.148,21.128,4.50893276]
[1674175629784,35.47,21.148,21.125,9.08902424]
[1674175629994,35.47,21.148,21.127,36.54101911]
[1674175630211,20.0,21.147,21.127,36.54101911]
[1674175630440,30.0,21.147,21.121,7.86991273]
[1674175630755,147.3705,21.146,21.121,7.86991273]
[1674175630955,147.3705,21.146,21.122,9.08902424]
[1674175631151,10.0,21.145,21.122,52.35038129]
[1674175631367,0.96,21.144,21.122,45.66289868]
[1674175631705,35.47,21.144,21.123,16.1588446]
[1674175631898,10.0,21.143,21.123,16.1588446]
[1674175632097,0.96,21.142,21.123,9.08902424]
[1674175632313,35.48,21.142,21.123,9.08902424]
[1674175632524,10.0,21.141,21.123,16.62456025]
[1674175632951,35.48,21.14,21.123,99.75480539]
[1674175633167,10.0,21.141,21.124,15.11455333]
[1674175633486,148.0976,21.142,21.125,55.64539494]
[1674175633698,148.0976,21.142,21.126,6.60610821]
[1674175634016,112.6176,21.142,21.127,27.04902424]
[1674175634205,112.6176,21.142,21.128,7.55082329]
[1674175634409,112.6176,21.142,21.129,17.96]
[1674175634621,112.6176,21.142,21.13,0.96]
[1674175634831,112.6176,21.142,21.131,0.96]
[1674175635063,112.6176,21.142,21.132,0.46]
[1674175635265,112.6176,21.142,21.131,0.96]
[1674175635593,35.48,21.141,21.13,0.96]
[1674175635810,10.0,21.14,21.13,0.96]
[1674175636327,35.48,21.139,21.13,0.96]
[1674175637166,45.48,21.14,21.131,0.96]
[1674175639455,45.48,21.14,21.126,83.92016848]
[1674175639670,45.48,21.14,21.127,18.92]
[1674175639978,45.48,21.14,21.126,37.36379778]
[1674175641555,45.48,21.14,21.127,18.92]
[1674175641974,35.48,21.14,21.127,18.92]
[1674175642502,10.0,21.141,21.127,18.92]
[1674175642716,10.0,21.141,21.127,22.97074624]
[1674175643044,10.0,21.141,21.128,6.28063823]
[1674175643259,10.0,21.141,21.129,1.92]
[1674175643442,10.0,21.139,21.129,1.92]
[1674175644011,10.0,21.137,21.129,0.96]
[1674175644937,10.0,21.137,21.122,6.48897304]
[1674175645134,10.0,21.137,21.121,37.36379778]
[1674175645344,35.49,21.136,21.121,37.36379778]
[1674175645559,35.49,21.136,21.122,9.08902424]
[1674175645783,10.0,21.137,21.122,14.20466586]
[1674175645990,10.0,21.137,21.123,7.29903363]
[1674175646312,10.0,21.137,21.124,9.08902424]
[1674175646636,10.0,21.137,21.125,18.92]
[1674175647130,10.0,21.137,21.125,28.00902424]
[1674175647342,10.0,21.139,21.125,28.00902424]
[1674175647574,10.0,21.139,21.126,5.01310635]
[1674175647756,10.0,21.141,21.127,18.92]
[1674175647966,10.0,21.141,21.127,28.00902424]
[1674175648305,10.0,21.141,21.128,4.02409183]
[1674175648514,10.0,21.141,21.129,1.92]
[1674175648827,10.0,21.141,21.129,18.92]
[1674175650200,112.6176,21.142,21.129,18.92]
[1674175651022,35.47,21.144,21.13,9.08902424]
[1674175651361,35.47,21.148,21.131,68.89027869]
[1674175651555,35.46,21.15,21.132,4.78108459]
[1674175651769,35.46,21.15,21.133,18.92]
[1674175652099,35.46,21.15,21.134,15.56891154]
[1674175652295,35.46,21.15,21.135,18.92]
[1674175652513,35.46,21.15,21.135,32.01886602]
[1674175652720,35.46,21.15,21.136,9.08902424]
[1674175652930,35.46,21.15,21.137,18.92]
[1674175653344,35.46,21.15,21.138,9.08902424]
[1674175653548,45.46,21.155,21.139,18.92]
[1674175653767,45.46,21.155,21.139,23.72160914]
[1674175653958,45.46,21.155,21.14,9.08902424]
[1674175654172,45.46,21.155,21.141,23.65757566]
[1674175654603,10.0,21.155,21.141,23.65757566]
[1674175654828,45.46,21.155,21.142,9.08902424]
[1674175655035,45.46,21.155,21.143,18.92]
[1674175655444,45.46,21.155,21.144,9.08902424]
[1674175655644,45.46,21.155,21.145,18.92]
[1674175656071,45.46,21.155,21.146,9.08902424]
[1674175656307,45.46,21.155,21.147,18.92]
[1674175658285,45.46,21.155,21.147,28.00902424]
[1674175659225,10.0,21.156,21.147,28.00902424]
[1674175659436,108.1164,21.157,21.147,33.06153266]
[1674175660505,108.1164,21.157,21.147,32.02011511]
[1674175660933,108.1164,21.157,21.147,34.79954796]
[1674175661564,10.0,21.156,21.147,28.00902424]
[1674175662186,10.0,21.156,21.148,5.34043372]
[1674175662394,10.0,21.156,21.149,18.92]
[1674175662824,10.0,21.156,21.149,28.00902424]
[1674175663011,10.0,21.156,21.15,9.08902424]
[1674175663222,10.0,21.156,21.151,18.92]
[1674175663437,10.0,21.156,21.151,0.96]
[1674175663960,35.46,21.155,21.151,0.96]
[1674175664302,10.0,21.154,21.151,0.96]
[1674175664800,10.0,21.154,21.152,0.96]
[1674175665216,10.0,21.154,21.151,17.96]
[1674175666921,10.0,21.154,21.15,17.0]
[1674175668164,10.0,21.154,21.151,1.92]
[1674175669124,10.0,21.154,21.15,26.08902424]
[1674175669335,10.0,21.154,21.14,5.96713342]
[1674175670059,35.46,21.153,21.139,48.7433757]
[1674175670258,10.0,21.152,21.139,48.7433757]
[1674175670701,10.0,21.15,21.14,18.92]
[1674175671117,10.0,21.15,21.141,9.75977792]
[1674175671328,10.0,21.15,21.142,18.92]
[1674175671741,10.0,21.15,21.143,9.75977792]
[1674175672070,10.0,21.15,21.144,18.92]
[1674175673135,10.0,21.15,21.139,38.98359778]
[1674175673345,10.0,21.15,21.132,6.7702366]
[1674175673536,10.0,21.148,21.132,38.98359778]
[1674175673745,10.0,21.148,21.133,45.9275213]
[1674175675028,10.0,21.148,21.133,38.98359778]
[1674175675643,0.96,21.147,21.131,49.97027869]
[1674175675857,10.96,21.146,21.121,7.19637172]
[1674175676174,10.0,21.146,21.13,9.25255075]
[1674175676390,35.47,21.145,21.13,9.25255075]
[1674175676577,35.47,21.145,21.123,7.76460452]
[1674175676790,10.0,21.144,21.125,9.25255075]
[1674175677328,35.48,21.143,21.125,59.22282944]
[1674175677548,0.96,21.142,21.121,5.24398559]
[1674175677747,10.0,21.141,21.124,9.25255075]
[1674175678076,45.48,21.141,21.124,9.25255075]
[1674175678479,10.0,21.141,21.12,6.10895775]
[1674175678688,10.0,21.141,21.114,35.6050193]
[1674175678689,36.44,21.14,21.118,9.25255075]
[1674175678896,0.96,21.139,21.118,9.25255075]
[1674175679111,10.96,21.139,21.118,9.25255075]
[1674175679320,35.48,21.138,21.115,4.96618324]
[1674175679646,10.0,21.136,21.115,4.96618324]
[1674175680048,10.0,21.139,21.12,9.25255075]
[1674175680258,10.0,21.139,21.119,163.77191039]
[1674175680461,10.0,21.139,21.12,18.5051015]
[1674175680705,10.0,21.137,21.12,9.25255075]
[1674175681102,121.8622,21.137,21.12,14.86472803]
[1674175681522,111.8622,21.137,21.121,10.0]
[1674175681951,111.8622,21.137,21.122,9.25255075]
[1674175682184,111.8622,21.137,21.123,1.92]
[1674175682617,111.8622,21.137,21.124,10.0]
[1674175682822,111.8622,21.137,21.125,23.79392142]
[1674175683026,117.8788,21.142,21.126,10.0]
[1674175683230,229.667,21.142,21.127,26.79364059]
[1674175683652,229.667,21.142,21.128,7.77312862]
[1674175683871,229.667,21.142,21.129,23.78847435]
[1674175684086,229.667,21.142,21.129,28.17255075]
[1674175684291,229.667,21.142,21.13,14.60252345]
[1674175684489,229.667,21.142,21.131,18.92]
[1674175684702,229.667,21.142,21.131,28.17255075]
[1674175685141,10.0,21.15,21.132,9.25255075]
[1674175685349,10.0,21.15,21.133,18.92]
[1674175685666,10.0,21.15,21.132,61.53701815]
[1674175685867,35.47,21.149,21.132,9.25255075]
[1674175686078,10.0,21.148,21.134,9.25255075]
[1674175686603,10.0,21.148,21.127,52.2844674]
[1674175686604,10.0,21.148,21.128,17.07731635]
[1674175686815,10.0,21.148,21.128,26.3298671]
[1674175687130,111.7882,21.152,21.13,7.66562174]
[1674175687345,111.7882,21.152,21.131,18.92]
[1674175687546,35.45,21.159,21.133,14.30384877]
[1674175687882,149.019,21.163,21.135,14.67719461]
[1674175688064,35.45,21.159,21.137,7.22121957]
[1674175688274,35.45,21.161,21.138,1.92]
[1674175688492,35.45,21.161,21.138,28.17255075]
[1674175688698,35.45,21.161,21.139,16.39654531]
[1674175689018,35.45,21.161,21.14,23.40212504]
[1674175689231,35.45,21.161,21.141,5.34131996]
[1674175689440,35.45,21.161,21.143,10.0]
[1674175689675,123.579,21.163,21.144,22.31057195]
[1674175689851,123.579,21.163,21.145,0.96]
[1674175690057,123.579,21.163,21.146,0.96]
[1674175690267,35.43,21.172,21.147,7.10611622]
[1674175690504,148.2689,21.172,21.149,5.2872535]
[1674175690689,148.2689,21.172,21.15,1.92]
[1674175690904,148.2689,21.172,21.15,26.35298029]
[1674175691134,148.2689,21.172,21.151,6.929667]
[1674175691350,148.2689,21.172,21.152,18.92]
[1674175691655,148.2689,21.172,21.153,16.16434642]
[1674175691972,148.2689,21.172,21.154,26.89109763]
[1674175692170,35.42,21.174,21.155,20.0]
[1674175692374,152.3856,21.185,21.156,23.82400087]
[1674175692690,162.3856,21.185,21.158,6.33934245]
[1674175692918,162.3856,21.185,21.16,5.14390135]
[1674175693132,162.3856,21.185,21.161,17.96]
[1674175693333,162.3856,21.185,21.161,28.17255075]
[1674175693558,162.3856,21.185,21.159,54.1284173]
[1674175693559,10.0,21.184,21.162,10.62377966]
[1674175693962,35.41,21.183,21.144,7.12150778]
[1674175694176,35.41,21.183,21.157,10.62377966]
[1674175694483,10.0,21.182,21.158,17.59871224]
[1674175694925,35.41,21.181,21.159,37.04346268]
[1674175695117,35.41,21.181,21.159,17.0]
[1674175695544,10.0,21.18,21.157,17.0]
[1674175695965,10.0,21.178,21.16,10.62377966]
[1674175696181,10.0,21.178,21.161,17.0]
[1674175696392,10.0,21.176,21.161,17.0]
[1674175696602,10.0,21.176,21.162,1.92]
[1674175696814,35.42,21.175,21.162,1.92]
[1674175697750,35.42,21.175,21.162,12.54377966]
[1674175697964,35.42,21.175,21.163,17.0]
[1674175698160,35.42,21.175,21.164,1.92]
[1674175698605,145.7374,21.175,21.164,12.54377966]
[1674175698817,110.3174,21.175,21.165,17.0]
[1674175699029,110.3174,21.175,21.166,1.92]
[1674175699232,35.41,21.181,21.166,12.54377966]
[1674175699427,35.41,21.181,21.167,10.62377966]
[1674175699646,35.41,21.181,21.168,18.92]
[1674175700058,35.41,21.181,21.169,10.62377966]
[1674175700267,35.41,21.181,21.17,18.92]
[1674175700703,35.41,21.181,21.171,10.62377966]
[1674175700906,35.41,21.181,21.172,18.92]
[1674175701107,35.41,21.181,21.172,25.7914672]
[1674175701314,152.3856,21.185,21.173,10.62377966]
[1674175701534,152.3856,21.185,21.174,18.92]
[1674175702063,162.3856,21.185,21.174,18.92]
[1674175704057,10.0,21.184,21.174,44.1284173]
[1674175704265,10.0,21.184,21.167,10.62377966]
[1674175704491,35.41,21.183,21.167,10.62377966]
[1674175704683,35.41,21.183,21.159,42.48868397]
[1674175704893,10.0,21.182,21.16,7.24152529]
[1674175705104,10.0,21.182,21.16,17.86530495]
[1674175705314,10.0,21.18,21.161,10.62377966]
[1674175705947,10.0,21.178,21.161,10.62377966]
[1674175706151,10.0,21.178,21.15,51.7492]
[1674175706152,10.0,21.178,21.151,4.32743863]
[1674175706380,10.0,21.176,21.158,10.62377966]
[1674175706596,10.0,21.176,21.15,7.48762105]
[1674175706800,10.0,21.174,21.151,10.62377966]
[1674175707219,10.0,21.172,21.151,10.62377966]
[1674175707639,10.0,21.17,21.151,10.62377966]
[1674175708168,35.43,21.169,21.151,10.62377966]
[1674175708384,35.43,21.169,21.152,23.51683531]
[1674175708596,35.43,21.169,21.153,10.0]
[1674175708783,35.43,21.171,21.154,24.11162727]
[1674175708994,35.43,21.173,21.154,34.73540693]
[1674175709207,35.43,21.173,21.155,7.11187788]
[1674175709416,35.43,21.173,21.156,26.54492691]
[1674175709649,35.43,21.173,21.156,29.54377966]
[1674175709839,35.43,21.173,21.157,14.84244012]
[1674175710053,35.43,21.173,21.158,18.92]
[1674175710261,35.43,21.173,21.159,5.6870193]
[1674175710473,35.43,21.173,21.16,18.92]
[1674175710906,45.42,21.174,21.161,4.0790236]
[1674175711228,45.42,21.174,21.162,1.92]
[1674175711447,45.42,21.174,21.162,29.54377966]
[1674175711640,45.42,21.174,21.163,10.62377966]
[1674175711838,10.0,21.174,21.164,18.92]
[1674175712168,10.0,21.174,21.164,29.54377966]
[1674175712568,35.43,21.173,21.164,18.92]
[1674175713017,45.42,21.174,21.164,18.92]
[1674175713850,45.42,21.174,21.164,29.54377966]
[1674175714060,45.42,21.174,21.164,72.03246363]
[1674175714481,45.42,21.174,21.164,29.54377966]
[1674175716375,45.42,21.174,21.155,49.40068644]
[1674175716560,45.42,21.174,21.155,6.91200247]
[1674175717613,45.42,21.174,21.155,17.53578213]
[1674175717927,45.42,21.174,21.156,18.92]
[1674175723843,45.42,21.174,21.157,10.62377966]
[1674175724039,45.42,21.174,21.158,18.92]
[1674175724446,45.42,21.174,21.159,10.62377966]
[1674175724672,45.42,21.174,21.16,18.92]
[1674175729291,45.42,21.174,21.16,29.54377966]
[1674175729705,35.42,21.174,21.16,29.54377966]
[1674175729917,35.42,21.174,21.161,7.35185021]
[1674175730127,222.2317,21.175,21.162,18.92]
[1674175730338,222.2317,21.175,21.162,29.54377966]
[1674175730557,222.2317,21.175,21.163,10.62377966]
[1674175730775,222.2317,21.175,21.164,18.92]
[1674175730969,110.8749,21.175,21.165,10.0]
[1674175731297,110.8749,21.175,21.166,18.92]
[1674175731508,110.8749,21.175,21.166,29.54377966]
[1674175731822,35.41,21.181,21.167,10.62377966]
[1674175732034,35.41,21.181,21.168,18.92]
[1674175733274,35.41,21.181,21.168,29.54377966]
[1674175733490,144.5349,21.183,21.168,29.54377966]
[1674175733817,144.5349,21.183,21.169,7.58778776]
[1674175734134,144.5349,21.183,21.17,18.92]
[1674175734739,144.5349,21.183,21.17,29.54377966]
[1674175734954,109.1249,21.183,21.17,29.54377966]
[1674175735700,10.0,21.182,21.163,7.33852759]
[1674175735918,45.41,21.182,21.166,10.62377966]
[1674175736530,45.41,21.182,21.163,7.33852759]
[1674175736741,45.41,21.182,21.164,10.62377966]
[1674175736957,45.41,21.182,21.165,18.92]
[1674175737384,45.41,21.182,21.166,10.62377966]
[1674175737582,45.41,21.182,21.167,18.92]
[1674175737794,10.0,21.182,21.167,68.47272511]
[1674175738116,144.5349,21.183,21.168,53.11246363]
[1674175738329,144.5349,21.183,21.169,22.82806487]
[1674175738543,144.5349,21.183,21.17,0.96]
[1674175738966,144.5349,21.183,21.17,11.58377966]
[1674175739177,144.5349,21.183,21.171,17.96]
[1674175739388,144.5349,21.183,21.172,0.96]
[1674175739716,144.5349,21.183,21.173,0.96]
[1674175739906,144.5349,21.183,21.174,0.96]
[1674175740117,144.5349,21.183,21.175,0.96]
[1674175740767,144.5349,21.183,21.171,17.0]
[1674175740976,10.0,21.182,21.155,4.85088694]
[1674175741165,10.0,21.182,21.166,10.62377966]
[1674175741495,35.41,21.181,21.166,10.62377966]
[1674175741705,10.0,21.18,21.166,10.62377966]
[1674175742020,35.41,21.181,21.167,17.96]
[1674175742211,35.41,21.181,21.168,0.96]
[1674175742422,35.41,21.181,21.169,0.96]
[1674175742659,144.5349,21.183,21.17,0.96]
[1674175742847,109.1249,21.183,21.17,17.25760062]
[1674175743057,109.1249,21.183,21.171,35.03653293]
[1674175743281,109.1249,21.183,21.172,0.96]
[1674175743484,109.1249,21.183,21.173,0.96]
[1674175743690,109.1249,21.183,21.174,0.96]
[1674175743902,109.1249,21.183,21.175,0.96]
[1674175744104,109.1249,21.183,21.175,42.48868397]
[1674175744316,109.1249,21.183,21.176,17.0]
[1674175744546,45.41,21.182,21.173,17.0]
[1674175751489,110.2499,21.197,21.174,10.62377966]
[1674175751678,116.9161,21.196,21.175,22.32325931]
[1674175751893,116.9161,21.196,21.176,16.17207478]
[1674175752103,116.9161,21.196,21.177,24.60045173]
[1674175752322,35.39,21.195,21.178,10.96]
[1674175752539,35.39,21.195,21.179,25.78642985]
[1674175752742,35.39,21.195,21.18,0.96]
[1674175752955,10.0,21.195,21.181,0.96]
[1674175753167,35.37,21.206,21.182,0.96]
[1674175753382,116.9161,21.205,21.183,0.96]
[1674175753572,116.9161,21.205,21.184,0.96]
[1674175753784,35.37,21.204,21.185,0.96]
[1674175754006,35.37,21.204,21.186,10.96]
[1674175754330,35.37,21.204,21.187,80.30937069]
[1674175754520,35.37,21.204,21.188,7.90775284]
[1674175754730,35.37,21.204,21.189,17.96]
[1674175754942,35.37,21.204,21.19,0.96]
[1674175755267,116.9161,21.205,21.191,0.96]
[1674175755588,116.9161,21.205,21.192,0.96]
[1674175755798,45.37,21.204,21.193,0.96]
[1674175756009,45.37,21.204,21.194,0.96]
[1674175756214,45.37,21.204,21.195,0.96]
[1674175756429,45.37,21.204,21.196,0.96]
[1674175756620,35.37,21.204,21.197,0.96]
[1674175756834,116.9161,21.205,21.197,0.96]
[1674175757050,116.9161,21.205,21.198,0.96]
[1674175757378,152.2861,21.205,21.199,0.96]
[1674175757580,116.9161,21.205,21.2,0.96]
[1674175757897,116.9161,21.205,21.187,6.79724127]
[1674175758099,35.37,21.204,21.187,6.79724127]
[1674175758310,45.37,21.204,21.188,76.8361004]
[1674175758846,10.0,21.203,21.179,7.14985675]
[1674175759056,10.0,21.203,21.184,54.5646782]
[1674175759245,35.38,21.202,21.184,54.5646782]
[1674175759456,10.0,21.201,21.184,54.5646782]
[1674175759893,10.0,21.199,21.184,54.5646782]
[1674175760544,10.0,21.199,21.185,17.96]
[1674175760732,10.0,21.199,21.186,0.96]
[1674175762319,35.38,21.2,21.186,0.96]
[1674175763140,152.2861,21.205,21.187,15.46801035]
[1674175763349,152.2861,21.205,21.188,23.63421536]
[1674175763554,152.2861,21.205,21.189,5.70656829]
[1674175763788,152.2861,21.205,21.19,18.92]
[1674175763992,152.2861,21.205,21.19,29.54377966]
[1674175764296,10.0,21.204,21.191,10.62377966]
[1674175764501,10.0,21.204,21.192,17.0]
[1674175764717,10.0,21.202,21.192,17.0]
[1674175765148,35.38,21.201,21.192,17.0]
[1674175765361,10.0,21.2,21.192,17.0]
[1674175766834,10.0,21.2,21.19,17.96]
[1674175767043,10.0,21.2,21.191,0.96]
[1674175768182,10.0,21.204,21.192,11.58377966]
[1674175768541,116.9161,21.205,21.193,28.58377966]
[1674175768830,116.9161,21.205,21.194,11.58377966]
[1674175769040,116.9161,21.205,21.195,17.96]
[1674175769251,116.9161,21.205,21.196,0.96]
[1674175769673,116.9161,21.205,21.197,0.96]
[1674175770085,116.9161,21.205,21.198,0.96]
[1674175770306,116.9161,21.205,21.199,0.96]
[1674175771991,116.9161,21.205,21.192,54.5646782]
[1674175772182,35.37,21.204,21.192,10.62377966]
[1674175772408,35.37,21.204,21.185,54.5646782]
[1674175772635,45.37,21.204,21.185,65.18845786]
[1674175772943,45.37,21.204,21.186,65.18845786]
[1674175773163,45.37,21.204,21.187,10.0]
[1674175773368,45.37,21.204,21.187,10.62377966]
[1674175773588,45.37,21.204,21.188,29.54377966]
[1674175773998,45.37,21.204,21.189,10.62377966]
[1674175774211,45.37,21.204,21.19,18.92]
[1674175774619,45.37,21.204,21.191,10.62377966]
[1674175774830,45.37,21.204,21.192,18.92]
[1674175775253,45.37,21.204,21.192,29.54377966]
[1674175776213,45.37,21.204,21.189,54.5646782]
[1674175776405,1.92,21.203,21.175,116.5467]
[1674175776614,10.0,21.202,21.181,21.24755932]
[1674175776846,1.92,21.201,21.181,10.62377966]
[1674175777368,35.38,21.2,21.181,10.62377966]
[1674175777554,11.92,21.199,21.181,10.62377966]
[1674175777769,11.92,21.199,21.182,18.92]
[1674175778006,10.0,21.197,21.182,18.92]
[1674175778398,35.39,21.196,21.182,18.92]
[1674175778609,10.0,21.195,21.182,18.92]
[1674175779245,10.0,21.193,21.182,18.92]
[1674175781572,10.0,21.193,21.182,29.54377966]
[1674175781993,10.0,21.193,21.182,18.92]
[1674175782620,10.0,21.193,21.182,29.54377966]
[1674175784839,10.0,21.193,21.182,27.62377966]
[1674175785052,36.35,21.192,21.177,66.21232074]
[1674175785372,0.96,21.191,21.166,4.51789286]
[1674175785565,10.96,21.19,21.169,10.62377966]
[1674175785780,46.36,21.19,21.169,10.62377966]
[1674175785982,0.96,21.189,21.169,10.62377966]
[1674175786196,0.96,21.188,21.169,10.62377966]
[1674175786413,10.0,21.187,21.169,10.62377966]
[1674175786627,227.9532,21.186,21.169,10.62377966]
[1674175786843,263.3532,21.186,21.169,10.62377966]
[1674175787157,10.0,21.185,21.17,0.96]
[1674175787375,10.0,21.185,21.171,0.96]
[1674175787565,10.0,21.185,21.172,0.96]
[1674175787774,10.0,21.185,21.173,0.96]
[1674175787985,10.0,21.185,21.174,0.96]
[1674175788506,10.0,21.185,21.175,0.96]
[1674175791233,10.0,21.185,21.172,10.62377966]
[1674175791446,10.0,21.185,21.144,142.3]
[1674175791668,35.41,21.184,21.167,10.62377966]
[1674175792076,10.0,21.183,21.167,10.62377966]
[1674175792501,10.0,21.181,21.167,10.62377966]
[1674175792710,10.0,21.181,21.164,161.54203139]
[1674175792931,10.0,21.181,21.165,29.54377966]
[1674175793443,10.0,21.181,21.166,10.62377966]
[1674175794406,10.0,21.181,21.164,39.99644487]
[1674175794713,10.0,21.181,21.165,10.62377966]
[1674175794953,35.41,21.18,21.165,10.62377966]
[1674175795278,10.0,21.179,21.166,18.92]
[1674175795587,10.0,21.179,21.166,29.54377966]
[1674175795795,35.42,21.178,21.166,29.54377966]
[1674175795985,10.0,21.177,21.166,29.54377966]
[1674175796192,10.0,21.177,21.166,10.62377966]
[1674175796409,10.0,21.177,21.153,122.44225101]
[1674175796622,10.0,21.175,21.154,7.34819741]
[1674175797161,10.0,21.173,21.155,39.99644487]
[1674175797791,35.43,21.172,21.155,39.99644487]
[1674175798005,10.0,21.171,21.155,39.99644487]
[1674175798932,10.0,21.171,21.156,29.54377966]
[1674175799349,10.0,21.171,21.157,10.62377966]
[1674175799574,10.0,21.173,21.158,18.92]
[1674175800003,10.0,21.173,21.159,10.62377966]
[1674175800215,10.0,21.173,21.16,18.92]
[1674175800531,10.0,21.173,21.161,10.62377966]
[1674175800738,10.0,21.173,21.162,18.92]
[1674175801152,10.0,21.173,21.162,29.54377966]
[1674175803258,35.42,21.178,21.162,73.58708119]
[1674175803472,35.41,21.184,21.163,7.4585699]
[1674175803677,35.41,21.182,21.164,18.92]
[1674175803901,35.41,21.182,21.164,29.54377966]
[1674175804106,35.41,21.182,21.165,10.62377966]
[1674175804318,10.0,21.175,21.165,10.62377966]
[1674175804546,10.0,21.175,21.155,7.45055319]
[1674175804755,123.3873,21.175,21.155,7.45055319]
[1674175805073,123.3873,21.175,21.156,54.66708119]
[1674175805469,123.3873,21.175,21.157,44.04330153]
[1674175805914,35.42,21.174,21.157,44.04330153]
[1674175806115,10.0,21.173,21.157,44.04330153]
[1674175806857,10.0,21.173,21.158,0.96]
[1674175807046,10.0,21.173,21.159,0.96]
[1674175807256,10.0,21.173,21.16,0.96]
[1674175807697,10.0,21.173,21.161,10.62377966]
[1674175808018,10.0,21.173,21.162,18.92]
[1674175808420,10.0,21.173,21.162,29.54377966]
[1674175809369,148.8073,21.175,21.162,28.58377966]
[1674175809583,113.3873,21.175,21.162,28.58377966]
[1674175809819,10.0,21.174,21.162,28.58377966]
[1674175810006,10.0,21.174,21.162,17.96]
[1674175810618,10.0,21.174,21.163,0.96]